fUST/lending_fUST_20250708
["ID","MTS","AMOUNT","RATE_DAILY","PERIOD"]
[370218561,1751916639420,-460.0,0.0002,2]
[370218564,1751916639431,-460.0,0.0002,2]
[370218566,1751916639442,-460.0,0.0002,2]
[370218568,1751916639452,-2987.38,0.0002,2]
[370218570,1751916639461,-460.0,0.0002,2]
[370218572,1751916639471,-713.5,0.0002,2]
[370218574,1751916639481,-946.87407532,0.0002,2]
[370218577,1751916639500,-688.17592468,0.0002,2]
[370218579,1751916639512,-460.0,0.0002,2]
[370218581,1751916639521,-1255.77,0.0002,2]
[370218583,1751916639532,-646.66313157,0.00020026,2]
[370218585,1751916639541,-1324.93768338,0.00020173,2]
[370218587,1751916639552,-460.0,0.00020177,2]
[370218589,1751916639561,-460.0,0.00020177,2]
[370218591,1751916639571,-1076.7438748,0.00020219,2]
[370218594,1751916639581,-247.8,0.00020263,3]
[370218596,1751916639591,-371.71,0.00020263,3]
[370218617,1751916639600,-185.86,0.00020263,3]
[370218620,1751916639807,-557.6,0.00020263,3]
[370218623,1751916639818,-502.98,0.00020273,2]
[370218625,1751916639827,-687.05,0.00020273,2]
[370218627,1751916639837,-460.0,0.00020273,2]
[370218629,1751916639847,-2358.38,0.00020273,2]
[370218631,1751916639859,-460.0,0.00020273,2]
[370218633,1751916639869,-460.0,0.00020273,2]
[370218635,1751916639879,-315.56654395,0.00020273,2]
[370218637,1751916639890,-884.87,0.00020273,2]
[370218639,1751916639900,-460.0,0.00020273,2]
[370218641,1751916639910,-1285.97,0.00020273,2]
[370218643,1751916639920,-880.89,0.00020273,2]
[370218645,1751916639930,-460.0,0.00020273,2]
[370218647,1751916639940,-460.0,0.00020273,2]
[370218649,1751916639949,-1773.92,0.00020273,2]
[370218651,1751916639959,-497.47,0.00020273,2]
[370218653,1751916639968,-399.08876732,0.00020273,2]
[370218655,1751916639978,-924.82,0.00020273,2]
[370218657,1751916639988,-460.0,0.00020273,2]
[370218659,1751916639998,-694.38,0.00020273,2]
[370218661,1751916640007,-1293.72,0.00020273,2]
[370218663,1751916640017,-544.1,0.00020273,2]
[370218665,1751916640027,-668.14,0.00020273,2]
[370218667,1751916640036,-531.9,0.00020273,2]
[370218669,1751916640046,-1077.55,0.00020273,2]
[370218671,1751916640055,-460.0,0.00020273,2]
[370218673,1751916640065,-241.9,0.00020273,2]
[370218675,1751916640080,-460.0,0.00020273,2]
[370218677,1751916640090,-460.0,0.00020273,2]
[370218679,1751916640098,-832.72,0.00020273,2]
[370218681,1751916640108,-460.0,0.00020273,2]
[370218683,1751916640119,-372.04347776,0.00020273,2]
[370218685,1751916640128,-460.0,0.00020273,2]
[370218687,1751916640137,-460.0,0.00020273,2]
[370218689,1751916640148,-2987.38,0.00020273,2]
[370218691,1751916640157,-460.0,0.00020273,2]
[370218693,1751916640167,-713.5,0.00020273,2]
[370218696,1751916640176,-1635.05,0.00020273,2]
[370218700,1751916640188,-460.0,0.00020273,2]
[370218703,1751916640197,-1255.77,0.00020273,2]
[370218706,1751916640207,-1000.0,0.00020289,2]
[370218709,1751916640216,-1000.0,0.00020289,2]
[370218712,1751916640226,-428.5386218,0.00020384,2]
[370218715,1751916640235,-428.5386218,0.00020384,2]
[370218718,1751916640245,-428.5386218,0.00020384,2]
[370218721,1751916640255,-428.5386218,0.00020384,2]
[370218724,1751916640265,-460.0,0.00020451,2]
[370218727,1751916640274,-228.21707167,0.00020451,2]
[370218730,1751916640283,-237.7,0.00020482,4]
[370218733,1751916640293,-1000.0,0.00020502,2]
[370218736,1751916640302,-1264.39514254,0.0002052,2]
[370218739,1751916640311,-502.98,0.00020547,2]
[370218742,1751916640321,-687.05,0.00020547,2]
[370218745,1751916640331,-460.0,0.00020547,2]
[370218748,1751916640340,-2358.38,0.00020547,2]
[370218751,1751916640349,-460.0,0.00020547,2]
[370218754,1751916640359,-316.42997316,0.00020547,2]
[370218757,1751916640368,-884.87,0.00020547,2]
[370218760,1751916640378,-460.0,0.00020547,2]
[370218763,1751916640387,-1285.97,0.00020547,2]
[370218766,1751916640398,-880.89,0.00020547,2]
[370218768,1751916640408,-460.0,0.00020547,2]
[370218770,1751916640418,-460.0,0.00020547,2]
[370218772,1751916640428,-1773.92,0.00020547,2]
[370218774,1751916640437,-924.82,0.00020547,2]
[370218777,1751916640447,-460.0,0.00020547,2]
[370218781,1751916640457,-694.38,0.00020547,2]
[370218784,1751916640467,-1293.72,0.00020547,2]
[370218787,1751916640476,-544.1,0.00020547,2]
[370218790,1751916640486,-668.14,0.00020547,2]
[370218793,1751916640495,-1077.55,0.00020547,2]
[370218796,1751916640504,-460.0,0.00020547,2]
[370218799,1751916640514,-460.0,0.00020547,2]
[370218802,1751916640523,-460.0,0.00020547,2]
[370218805,1751916640533,-832.72,0.00020547,2]
[370218808,1751916640542,-245.84,0.00020547,2]
[370218811,1751916640551,-460.0,0.00020547,2]
[370218814,1751916640561,-2987.38,0.00020547,2]
[370218817,1751916640570,-160.05,0.00020547,2]
[370218819,1751916640580,-1635.05,0.00020547,2]
[370218822,1751916640590,-460.0,0.00020547,2]
[370218825,1751916640602,-713.5,0.00020547,2]
[370218828,1751916640616,-1255.77,0.00020547,2]
[370218831,1751916640626,-690.642,0.00020576,2]
[370218834,1751916640636,-1500.0,0.00020576,2]
[370218837,1751916640645,-1296.93837985,0.00020576,2]
[370218840,1751916640655,-207.4,0.00020576,2]
[370218843,1751916640664,-151.0,0.00020576,2]
[370218846,1751916640674,-151.0,0.00020576,2]
[370218849,1751916640683,-25000.0,0.00020576,2]
[370218852,1751916640693,-151.0,0.00020576,2]
[370218855,1751916640704,-500.0,0.00020576,2]
[370218858,1751916640714,-500.0,0.00020576,2]
[370218861,1751916640724,-151.0,0.00020576,2]
[370218864,1751916640734,-151.0,0.00020576,2]
[370218867,1751916640743,-151.0,0.00020576,2]
[370218870,1751916640754,-151.0,0.00020576,2]
[370218873,1751916640763,-151.0,0.00020576,2]
[370218876,1751916640773,-151.0,0.00020576,2]
[370218879,1751916640782,-151.0,0.00020576,2]
[370218881,1751916640791,-151.0,0.00020576,2]
[370218884,1751916640802,-151.0,0.00020576,2]
[370218887,1751916640812,-151.0,0.00020576,2]
[370218890,1751916640822,-187.40654362,0.00020576,2]
[370218893,1751916640831,-2666.04,0.000206,2]
[370218896,1751916640840,-580.425,0.00020629,2]
[370218899,1751916640850,-178.056,0.00020629,2]
[370218902,1751916640859,-716.195754,0.00020631,2]
[370218905,1751916640869,-742.6949969,0.00020686,2]
[370218908,1751916640878,-150.0,0.00020705,30]
[370218910,1751916640889,-359.30738321,0.00020725,2]
[370218913,1751916640899,-770.17471178,0.00020741,2]
[370218916,1751916640908,-1586.49795324,0.00020788,2]
[370218919,1751916640918,-798.67117612,0.00020796,2]
[370218922,1751916640927,-502.98,0.00020821,2]
[370218925,1751916640937,-687.05,0.00020821,2]
[370218928,1751916640947,-460.0,0.00020821,2]
[370218931,1751916640956,-2358.38,0.00020821,2]
[370218934,1751916640966,-460.0,0.00020821,2]
[370218937,1751916640975,-884.87,0.00020821,2]
[370218940,1751916640985,-460.0,0.00020821,2]
[370218943,1751916640994,-1285.97,0.00020821,2]
[370218946,1751916641003,-880.89,0.00020821,2]
[370218948,1751916641012,-460.0,0.00020821,2]
[370218951,1751916641021,-460.0,0.00020821,2]
[370218954,1751916641031,-1773.92,0.00020821,2]
[370218957,1751916641041,-924.82,0.00020821,2]
[370218960,1751916641052,-460.0,0.00020821,2]
[370218964,1751916641062,-694.38,0.00020821,2]
[370218967,1751916641075,-1293.72,0.00020821,2]
[370218970,1751916641084,-544.1,0.00020821,2]
[370218973,1751916641094,-668.14,0.00020821,2]
[370218976,1751916641103,-1077.55,0.00020821,2]
[370218979,1751916641112,-460.0,0.00020821,2]
[370218982,1751916641121,-460.0,0.00020821,2]
[370218984,1751916641131,-460.0,0.00020821,2]
[370218987,1751916641140,-832.72,0.00020821,2]
[370218990,1751916641151,-151.0,0.00020821,2]
[370218992,1751916641161,-460.0,0.00020821,2]
[370218994,1751916641180,-2987.38,0.00020821,2]
[370218996,1751916641191,-1635.05,0.00020821,2]
[370218999,1751916641200,-460.0,0.00020821,2]
[370219002,1751916641209,-713.5,0.00020821,2]
[370219003,1751916641219,-1255.77,0.00020821,2]
[370219005,1751916641228,-1000.0,0.00020837,2]
[370219007,1751916641238,-1000.0,0.00020837,2]
[370219009,1751916641247,-828.22200964,0.00020851,2]
[370219011,1751916641256,-420.0,0.00020897,2]
[370219013,1751916641266,-2582.47272801,0.000209,4]
[370219015,1751916641275,-858.86622399,0.00020906,2]
[370219017,1751916641284,-237.7,0.00020938,4]
[370219019,1751916641294,-890.64427428,0.00020961,2]
[370219021,1751916641304,-150.0,0.00021016,2]
[370219023,1751916641313,-923.59811243,0.00021016,2]
[370219024,1751916641323,-500.0,0.0002105,2]
[370219026,1751916641331,-356.7828767,0.00021068,2]
[370219028,1751916641341,-957.77124259,0.00021071,2]
[370219030,1751916641355,-2582.47272783,0.00021072,4]
[370219032,1751916641365,-502.98,0.00021095,2]
[370219034,1751916641375,-687.05,0.00021095,2]
[370219036,1751916641385,-460.0,0.00021095,2]
[370219038,1751916641394,-2358.38,0.00021095,2]
[370219040,1751916641403,-460.0,0.00021095,2]
[370219042,1751916641412,-884.87,0.00021095,2]
[370219043,1751916641422,-460.0,0.00021095,2]
[370219045,1751916641431,-1285.97,0.00021095,2]
[370219047,1751916641441,-880.89,0.00021095,2]
[370219049,1751916641452,-460.0,0.00021095,2]
[370219051,1751916641461,-280.0,0.00021095,2]
[370219053,1751916641471,-1773.92,0.00021095,2]
[370219055,1751916641480,-924.82,0.00021095,2]
[370219057,1751916641490,-460.0,0.00021095,2]
[370219059,1751916641499,-694.38,0.00021095,2]
[370219061,1751916641510,-1293.72,0.00021095,2]
[370219063,1751916641519,-544.1,0.00021095,2]
[370219065,1751916641528,-668.14,0.00021095,2]
[370219067,1751916641537,-1077.55,0.00021095,2]
[370219069,1751916641546,-460.0,0.00021095,2]
[370219071,1751916641556,-460.0,0.00021095,2]
[370219073,1751916641566,-460.0,0.00021095,2]
[370219075,1751916641577,-832.72,0.00021095,2]
[370219076,1751916641587,-460.0,0.00021095,2]
[370219078,1751916641597,-2987.38,0.00021095,2]
[370219080,1751916641606,-1635.05,0.00021095,2]
[370219082,1751916641616,-460.0,0.00021095,2]
[370219084,1751916641625,-713.5,0.00021095,2]
[370219086,1751916641635,-1255.77,0.00021095,2]
[370219087,1751916641645,-993.20877856,0.00021126,2]
[370219089,1751916641654,-1264.39514254,0.0002114,2]
[370219091,1751916641663,-179.251357,0.00021178,2]
[370219093,1751916641673,-1029.95750337,0.00021181,2]
[370219095,1751916641683,-1068.065931,0.00021236,2]
[370219097,1751916641692,-2582.47272783,0.00021245,4]
[370219099,1751916641701,-967.0,0.00021251,2]
[370219101,1751916641711,-403.57,0.00021251,2]
[370219103,1751916641722,-429.128,0.00021251,2]
[370219105,1751916641732,-2153.0,0.00021251,2]
[370219107,1751916641742,-1107.58437044,0.00021291,2]
[370219109,1751916641752,-457.92299215,0.00021346,2]
[370219111,1751916641761,-243.816495,0.00021359,2]
[370219113,1751916641771,-243.816495,0.00021359,2]
[370219115,1751916641781,-151.0,0.00021369,2]
[370219117,1751916641790,-151.0,0.00021369,2]
[370219119,1751916641800,-151.0,0.00021369,2]
[370219121,1751916641810,-151.0,0.00021369,2]
[370219123,1751916641820,-502.98,0.00021369,2]
[370219124,1751916641829,-687.05,0.00021369,2]
[370219126,1751916641839,-460.0,0.00021369,2]
[370219128,1751916641848,-2358.38,0.00021369,2]
[370219130,1751916641858,-460.0,0.00021369,2]
[370219132,1751916641869,-884.87,0.00021369,2]
[370219134,1751916641878,-460.0,0.00021369,2]
[370219136,1751916641887,-1285.97,0.00021369,2]
[370219138,1751916641897,-880.89,0.00021369,2]
[370219140,1751916641907,-460.0,0.00021369,2]
[370219142,1751916641916,-1773.92,0.00021369,2]
[370219143,1751916641926,-151.0,0.00021369,2]
[370219145,1751916641936,-924.82,0.00021369,2]
[370219147,1751916641946,-460.0,0.00021369,2]
[370219149,1751916641955,-694.38,0.00021369,2]
[370219151,1751916641965,-1293.72,0.00021369,2]
[370219153,1751916641975,-544.1,0.00021369,2]
[370219155,1751916641985,-668.14,0.00021369,2]
[370219157,1751916641996,-1077.55,0.00021369,2]
[370219159,1751916642005,-151.0,0.00021369,2]
[370219161,1751916642015,-460.0,0.00021369,2]
[370219163,1751916642025,-460.0,0.00021369,2]
[370219165,1751916642036,-460.0,0.00021369,2]
[370219167,1751916642046,-151.0,0.00021369,2]
[370219169,1751916642056,-832.72,0.00021369,2]
[370219171,1751916642066,-460.0,0.00021369,2]
[370219173,1751916642078,-2987.38,0.00021369,2]
[370219175,1751916642087,-1635.05,0.00021369,2]
[370219177,1751916642097,-460.0,0.00021369,2]
[370219179,1751916642106,-713.5,0.00021369,2]
[370219180,1751916642117,-1255.77,0.00021369,2]
[370219182,1751916642126,-980.0,0.00021378,2]
[370219184,1751916642136,-980.0,0.00021388,2]
[370219186,1751916642149,-237.7,0.00021394,4]
[370219188,1751916642159,-151.0,0.00021417,2]
[370219190,1751916642169,-2582.47272783,0.00021417,5]
[370219192,1751916642178,-980.0,0.00021425,2]
[370219194,1751916642188,-980.0,0.00021455,2]
[370219196,1751916642198,-1786.531264,0.0002156,4]
[370219198,1751916642208,-980.0,0.00021565,2]
[370219200,1751916642217,-12889.33866,0.00021589,2]
[370219202,1751916642226,-2582.47272783,0.0002159,5]
[370219204,1751916642237,-495.6,0.00021633,3]
[370219206,1751916642246,-743.42,0.00021633,3]
[370219208,1751916642255,-371.72,0.00021633,3]
[370219210,1751916642264,-502.98,0.00021643,2]
[370219211,1751916642274,-687.05,0.00021643,2]
[370219213,1751916642283,-372.18,0.00021643,2]
[370219215,1751916642292,-2358.38,0.00021643,2]
[370219217,1751916642302,-460.0,0.00021643,2]
[370219219,1751916642312,-884.87,0.00021643,2]
[370219221,1751916642322,-460.0,0.00021643,2]
[370219223,1751916642331,-1285.97,0.00021643,2]
[370219225,1751916642340,-880.89,0.00021643,2]
[370219227,1751916642349,-460.0,0.00021643,2]
[370219229,1751916642359,-1773.92,0.00021643,2]
[370219231,1751916642369,-924.82,0.00021643,2]
[370219233,1751916642378,-460.0,0.00021643,2]
[370219235,1751916642388,-694.38,0.00021643,2]
[370219236,1751916642397,-1293.72,0.00021643,2]
[370219238,1751916642406,-544.1,0.00021643,2]
[370219240,1751916642416,-284.990915,0.00021643,2]
[370219242,1751916642426,-668.14,0.00021643,2]
[370219244,1751916642435,-284.990915,0.00021643,2]
[370219246,1751916642445,-1077.55,0.00021643,2]
[370219248,1751916642454,-460.0,0.00021643,2]
[370219250,1751916642464,-460.0,0.00021643,2]
[370219252,1751916642473,-460.0,0.00021643,2]
[370219254,1751916642484,-832.72,0.00021643,2]
[370219256,1751916642495,-460.0,0.00021643,2]
[370219258,1751916642504,-2987.38,0.00021643,2]
[370219260,1751916642514,-1635.05,0.00021643,2]
[370219262,1751916642523,-460.0,0.00021643,2]
[370219264,1751916642534,-713.5,0.00021643,2]
[370219266,1751916642544,-1255.77,0.00021643,2]
[370219268,1751916642553,-1586.49795324,0.00021643,2]
[370219270,1751916642563,-2666.04,0.000217,2]
[370219272,1751916642573,-1264.39514254,0.0002176,2]
[370219274,1751916642583,-2582.47272783,0.00021762,5]
[370219276,1751916642593,-237.7,0.0002185,5]
[370219278,1751916642602,-221.0583572,0.00021863,2]
[370219280,1751916642611,-153.0,0.00021863,2]
[370219281,1751916642621,-153.0,0.00021863,2]
[370219283,1751916642630,-153.0,0.00021863,2]
[370219285,1751916642639,-153.0,0.00021863,2]
[370219287,1751916642649,-153.0,0.00021863,2]
[370219289,1751916642658,-153.0,0.00021863,2]
[370219291,1751916642668,-153.0,0.00021863,2]
[370219293,1751916642677,-153.0,0.00021863,2]
[370219295,1751916642687,-153.0,0.00021863,2]
[370219297,1751916642697,-153.0,0.00021863,2]
[370219299,1751916642706,-153.0,0.00021863,2]
[370219301,1751916642715,-153.0,0.00021863,2]
[370219303,1751916642725,-1203.0,0.00021875,2]
[370219305,1751916642735,-243.816495,0.00021917,2]
[370219307,1751916642745,-243.816495,0.00021917,2]
[370219309,1751916642754,-502.98,0.00021917,2]
[370219311,1751916642764,-687.05,0.00021917,2]
[370219313,1751916642773,-2358.38,0.00021917,2]
[370219315,1751916642782,-460.0,0.00021917,2]
[370219317,1751916642792,-151.0,0.00021917,2]
[370219319,1751916642802,-151.0,0.00021917,2]
[370219321,1751916642811,-884.87,0.00021917,2]
[370219323,1751916642820,-460.0,0.00021917,2]
[370219325,1751916642830,-1285.97,0.00021917,2]
[370219327,1751916642839,-880.89,0.00021917,2]
[370219329,1751916642848,-460.0,0.00021917,2]
[370219331,1751916642857,-151.0,0.00021917,2]
[370219333,1751916642866,-283.46034411,0.00021917,2]
[370219335,1751916642876,-1773.92,0.00021917,2]
[370219337,1751916642885,-151.0,0.00021917,2]
[370219339,1751916642896,-924.82,0.00021917,2]
[370219341,1751916642905,-460.0,0.00021917,2]
[370219343,1751916642915,-694.38,0.00021917,2]
[370219345,1751916642924,-1293.72,0.00021917,2]
[370219347,1751916642934,-544.1,0.00021917,2]
[370219349,1751916642943,-668.14,0.00021917,2]
[370219363,1751916643075,-1077.55,0.00021917,2]
[370219365,1751916643086,-460.0,0.00021917,2]
[370219367,1751916643095,-460.0,0.00021917,2]
[370219369,1751916643104,-460.0,0.00021917,2]
[370219371,1751916643114,-832.72,0.00021917,2]
[370219373,1751916643123,-460.0,0.00021917,2]
[370219375,1751916643132,-2987.38,0.00021917,2]
[370219377,1751916643142,-1635.05,0.00021917,2]
[370219379,1751916643152,-460.0,0.00021917,2]
[370219381,1751916643162,-713.5,0.00021917,2]
[370219383,1751916643172,-151.0,0.00021918,2]
[370219385,1751916643181,-410.25047172,0.00021918,7]
[370219387,1751916643190,-343.91375686,0.00021918,2]
[370219389,1751916643200,-500.0,0.00021918,2]
[370219391,1751916643210,-470.98918435,0.00021918,2]
[370219392,1751916643220,-500.0,0.00021918,2]
[370219394,1751916643229,-500.0,0.00021918,2]
[370219396,1751916643239,-500.0,0.00021918,2]
[370219398,1751916643249,-309.25525603,0.00021918,2]
[370219400,1751916643259,-500.0,0.00021918,2]
[370219402,1751916643269,-500.0,0.00021918,2]
[370219404,1751916643279,-514.5841109,0.00021918,2]
[370219406,1751916643289,-2582.47272783,0.00021934,6]
[370219408,1751916643298,-151.0,0.00021935,7]
[370219410,1751916643308,-151.0,0.00021935,7]
[370219412,1751916643318,-215.0738,0.00021945,2]
[370219414,1751916643327,-726.95919418,0.00021962,2]
[370219416,1751916643337,-503.98954517,0.00022,8]
[370219418,1751916643348,-27205.36231995,0.00022,2]
[370219420,1751916643357,-151.0,0.00022,7]
[370219422,1751916643367,-151.0,0.00022,7]
[370219424,1751916643377,-151.0,0.00022,7]
[370219426,1751916643387,-151.0,0.00022,7]
[370219428,1751916643396,-151.0,0.00022,7]
[370219430,1751916643406,-247.424768,0.00022,2]
[370219432,1751916643415,-247.424768,0.00022,2]
[370219434,1751916643426,-151.0,0.00022,3]
[370219436,1751916643435,-272.316701,0.00022,7]
[370219438,1751916643445,-151.0,0.00022,7]
[370219440,1751916643454,-151.0,0.00022,7]
[370219442,1751916643463,-151.0,0.00022,7]
[370219444,1751916643472,-151.0,0.00022,7]
[370219446,1751916643481,-151.0,0.00022,7]
[370219448,1751916643491,-151.0,0.00022,7]
[370219450,1751916643501,-151.0,0.00022,7]
[370219452,1751916643510,-151.0,0.00022,7]
[370219454,1751916643521,-151.0,0.00022,7]
[370219456,1751916643530,-1879.24635333,0.00022,2]
[370219458,1751916643539,-151.0,0.00022,7]
[370219460,1751916643549,-1000.0,0.00022,2]
[370219462,1751916643559,-214.06929976,0.00022,7]
[370219464,1751916643568,-429.086189,0.00022,30]
[370219466,1751916643578,-848.27993403,0.00022,7]
[370219468,1751916643589,-45215.55,0.00022,7]
[370219469,1751916643599,-161.90704,0.00022,7]
[370219470,1751916643609,-12584.46609586,0.00022,7]
[370219471,1751916643618,-166.0,0.00022,2]
[370219472,1751916643627,-332.0,0.00022017,2]
[370219473,1751916643637,-155.887469,0.00022027,7]
[370219474,1751916643646,-155.887469,0.00022027,7]
[370219475,1751916643656,-2679.2,0.00022062,2]
[370219476,1751916643665,-179.251357,0.00022099,2]
[370219477,1751916643675,-2582.47272783,0.00022107,6]
[370219478,1751916643684,-332.0,0.00022114,2]
[370219479,1751916643694,-168.0,0.0002213,2]
[370219480,1751916643704,-2410.0,0.00022139,2]
[370219481,1751916643713,-151.0,0.00022139,7]
[370219482,1751916643722,-500.0,0.00022173,2]
[370219483,1751916643732,-500.0,0.00022173,2]
[370219484,1751916643742,-500.0,0.00022173,2]
[370219485,1751916643752,-500.0,0.00022173,2]
[370219486,1751916643762,-500.0,0.00022173,2]
[370219487,1751916643772,-300.0,0.00022173,2]
[370219488,1751916643781,-500.0,0.00022173,2]
[370219489,1751916643791,-500.0,0.00022173,2]
[370219490,1751916643801,-600.0,0.00022173,2]
[370219491,1751916643811,-500.0,0.00022173,2]
[370219492,1751916643820,-500.0,0.00022173,2]
[370219493,1751916643829,-500.0,0.00022173,2]
[370219494,1751916643839,-500.0,0.00022173,2]
[370219495,1751916643848,-500.0,0.00022173,2]
[370219496,1751916643857,-500.0,0.00022173,2]
[370219497,1751916643866,-500.0,0.00022173,2]
[370219498,1751916643876,-500.0,0.00022173,2]
[370219499,1751916643885,-500.0,0.00022173,2]
[370219500,1751916643894,-500.0,0.00022173,2]
[370219501,1751916643904,-500.0,0.00022173,2]
[370219502,1751916643913,-500.0,0.00022173,2]
[370219503,1751916643923,-580.72165485,0.00022173,2]
[370219504,1751916643932,-500.0,0.00022176,10]
[370219505,1751916643941,-3145.30245168,0.00022177,2]
[370219506,1751916643951,-7269.3360328,0.00022177,2]
[370219507,1751916643960,-160029.6503643,0.00022177,2]
[370219508,1751916643970,-151.0,0.00022177,7]
[370219509,1751916643979,-151.0,0.00022177,7]
[370219510,1751916643989,-151.0,0.00022177,7]
[370219511,1751916643998,-197.747247,0.00022177,7]
[370219513,1751916644008,-151.0,0.00022177,7]
[370219515,1751916644017,-210.2174,0.00022177,7]
[370219517,1751916644027,-151.0,0.00022177,7]
[370219519,1751916644037,-151.0,0.00022177,7]
[370219521,1751916644046,-151.0,0.00022177,7]
[370219524,1751916644056,-151.0,0.00022177,7]
[370219526,1751916644067,-201.773008,0.00022177,7]
[370219527,1751916644078,-201.773008,0.00022177,7]
[370219529,1751916644088,-151.0,0.00022177,7]
[370219531,1751916644097,-151.0,0.00022177,7]
[370219533,1751916644107,-155.887469,0.00022177,7]
[370219535,1751916644117,-155.887469,0.00022177,7]
[370219537,1751916644126,-271.112617,0.00022177,7]
[370219539,1751916644136,-151.0,0.00022177,7]
[370219541,1751916644147,-271.112617,0.00022177,7]
[370219543,1751916644158,-151.0,0.00022177,3]
[370219545,1751916644167,-151.0,0.00022177,7]
[370219547,1751916644176,-270.078039,0.00022177,7]
[370219549,1751916644186,-270.078039,0.00022177,7]
[370219551,1751916644195,-284.990915,0.00022177,7]
[370219553,1751916644204,-284.990915,0.00022177,7]
[370219555,1751916644213,-151.0,0.00022177,7]
[370219557,1751916644223,-151.0,0.00022177,7]
[370219559,1751916644233,-151.0,0.00022177,7]
[370219561,1751916644242,-151.293224,0.00022177,7]
[370219563,1751916644251,-151.0,0.00022177,7]
[370219565,1751916644261,-1743.418806,0.0002218,5]
[370219567,1751916644271,-243.816495,0.00022191,7]
[370219569,1751916644280,-243.816495,0.00022191,7]
[370219571,1751916644290,-502.98,0.00022191,2]
[370219573,1751916644299,-687.05,0.00022191,2]
[370219575,1751916644309,-2358.38,0.00022191,2]
[370219577,1751916644319,-460.0,0.00022191,2]
[370219579,1751916644328,-884.87,0.00022191,2]
[370219581,1751916644339,-573.56629611,0.00022191,2]
[370219583,1751916644349,-1285.97,0.00022191,2]
[370219586,1751916644360,-880.89,0.00022191,2]
[370219588,1751916644369,-237.23,0.00022191,2]
[370219590,1751916644379,-1773.92,0.00022191,2]
[370219592,1751916644390,-924.82,0.00022191,2]
[370219594,1751916644400,-460.0,0.00022191,2]
[370219596,1751916644409,-694.38,0.00022191,2]
[370219598,1751916644419,-1293.72,0.00022191,2]
[370219600,1751916644428,-544.1,0.00022191,2]
[370219602,1751916644437,-668.14,0.00022191,2]
[370219603,1751916644447,-1077.55,0.00022191,2]
[370219606,1751916644457,-460.0,0.00022191,2]
[370219607,1751916644466,-460.0,0.00022191,2]
[370219609,1751916644476,-460.0,0.00022191,2]
[370219611,1751916644486,-832.72,0.00022191,2]
[370219613,1751916644496,-460.0,0.00022191,2]
[370219616,1751916644507,-2987.38,0.00022191,2]
[370219618,1751916644516,-1635.05,0.00022191,2]
[370219620,1751916644526,-460.0,0.00022191,2]
[370219622,1751916644536,-713.5,0.00022191,2]
[370219624,1751916644546,-166.0,0.00022192,7]
[370219626,1751916644556,-160.0,0.00022193,4]
[370219628,1751916644566,-2000.0,0.00022198,2]
[370219630,1751916644576,-500.0,0.00022199,10]
[370219631,1751916644586,-151.0,0.000222,6]
[370219634,1751916644597,-151.0,0.000222,8]
[370219636,1751916644612,-1000.0,0.000222,5]
[370219637,1751916644622,-848.27993403,0.000222,7]